[Event "3rd VIZAG GM-Open 2022"]
[Site "Visakapatnam"]
[Date "2022.06.13"]
[Round "1.15"]
[White "Harshit Ranjan Sahu"]
[Black "Laxman, R.R."]
[Result "0-1"]
[ECO "C56"]
[WhiteElo "1645"]
[BlackElo "2420"]
[Annotator "TA"]
[PlyCount "90"]
[EventDate "2022.06.13"]
[EventType "swiss"]
[EventCountry "IND"]
[SourceTitle "playchess.com"]
[Source "ChessBase"]
[SourceQuality "1"]
[TimeControl "5400+30"]

{[%evp 15,90,0,0,0,0,-32,-22,-63,-59,-51,-64,-103,-87,-141,-137,-131,-91,-189,-194,-325,-174,-189,-186,-195,-161,-427,-410,-418,-418,-397,-407,-518,-525,-687,-672,-677,-676,-646,-636,-731,-752,-763,-756,-994,-748,-735,-725,-801,-781,-756,-739,-843,-833,-810,-794,-1818,-2494,-2398,-4034,-6129,-6181,-3050,-6703,-6430,-6620,-5951,-5102,-6103,-5140,-5302,-6221,-6311,-5713,-1900,-5731,-29975,-5793]} 1. e4 {[%emt 1:31:00]} e5 {[%emt 1:31:00]} 2. Nf3 {[%emt 0:00:30]} Nc6 {[%emt 0:00:30]} 3. d4 {[%emt 0:00:30]} exd4 {[%emt 0:00:30]} 4. Bc4 {[%emt 0:00:30]} Nf6 {[%emt 0:00:30]} 5. e5 {[%emt 0:00:30]} d5 {[%emt 0:00:30]} 6. Bb5 {[%emt 0:00:30]} Nd7 {[%emt 0:00:30]} 7. O-O {[%emt 0:00:30]} Be7 {[%emt 0:00:30]} 8. Bxc6 {[%emt 0:00:30]} bxc6 {[%emt 0:00:30]} 9. Nxd4 {[%emt 0:00:30] C56: Two Knights: 4 d4 exd4 5 0-0 Nxe4.} Nb8 {[%emt 0:00:30]} 10. Ne2 {[%emt 0:00:30]} O-O {[%emt 0:00:30] [#]} 11. f4 $146 {[%emt 0:00:30] The position is equal.} ({Predecessor:} 11. c4 Re8 12. Nbc3 Be6 13. Nf4 Nd7 14. Nxe6 fxe6 15. Qa4 Bc5 16. Re1 Qe7 17. Be3 Bb6 18. Bxb6 axb6 19. Qb3 Rf8 20. cxd5 {½-½ (20) Cherenkov,A (2235)-Komliakov,V (2428) Moscow 2011}) 11... Bc5+ {[%emt 0:00:30]} 12. Kh1 {[%emt 0:00:30]} f6 {[%emt 0:00:30]} 13. a3 {[%emt 0:00:30]} a5 {[%emt 0:00:30]} 14. b3 {[%emt 0:00:30]} (14. Nbc3 $142) 14... fxe5 $17 {[%emt 0:00:30]} 15. fxe5 {[%emt 0:00:30]} Bg4 {[%emt 0:00:30] Black is more active. This bishop pair is nice.} 16. Bb2 {[%emt 0:00:30]} (16. Bf4 $17) 16... Nd7 $19 {[%emt 0:00:30][%cal Bb8d7,Bd7e5,Be5f3][%mdl 32]} 17. Nd2 {[%emt 0:00:30]} (17. Rxf8+ $142 Qxf8 18. Nbc3) 17... Qe7 {[%emt 0:00:30]} (17... Bf2 $142 18. b4 (18. h3 $2 Qh4 $19) 18... Qe8) 18. Qe1 {[%emt 0:00:30]} ({Don't go for} 18. h3 $2 {[#]} Bf2 $1 19. Nf3 Rxf3 20. gxf3 Bxf3+ 21. Kh2 Qh4 $19) 18... Nxe5 {[%emt 0:00:30][%cal Oe5d3]} 19. Nd4 {[%emt 0:00:30]} Bd6 {[%emt 0:00:30]} 20. N2f3 $2 {[%emt 0:00:30]} (20. Qg3) 20... c5 {[%emt 0:00:30]} 21. Nb5 {[%emt 0:00:30][%cal Rb2e5]} Nxf3 {[%emt 0:00:30]} 22. Qxe7 {[%emt 0:00:30]} Bxe7 {[%emt 0:00:30] Chess con chili.} 23. gxf3 {[%emt 0:00:30]} Bxf3+ {[%emt 0:00:30]} 24. Kg1 {[%emt 0:00:30]} Ra6 {[%emt 0:00:30] ( -> ...Rg6+)} 25. Be5 {[%emt 0:00:30]} Rg6+ {[%emt 0:00:30]} 26. Bg3 {[%emt 0:00:30]} c6 {[%emt 0:00:30]} 27. Nc3 {[%emt 0:00:30]} c4 {[%emt 0:00:30]} 28. Na4 {[%emt 0:00:30] Inhibits Bc5+.} cxb3 {[%emt 0:00:30]} 29. Rae1 {[%emt 0:00:30]} Bg5 {[%emt 0:00:30]} 30. cxb3 {[%emt 0:00:30]} h5 {[%emt 0:00:30][%cal Bh7h5,Bh5h4,Bh4g3,Bg3h2][%mdl 32]} 31. Nc5 {[%emt 0:00:30]} h4 {[%emt 0:00:30]} 32. Nd7 {[%emt 0:00:30]} hxg3 {[%emt 0:00:30]} 33. Nxf8 {[%emt 0:00:30]} gxh2+ {[%emt 0:00:30]} 34. Kf2 {[%emt 0:00:30]} Rf6 {[%emt 0:00:30] Threatens to win with ...Bh4+.} 35. Nd7 {[%emt 0:00:30]} Bh4+ {[%emt 0:00:30]} 36. Ke3 {[%emt 0:00:30]} Re6+ {[%emt 0:00:30]} 37. Kxf3 {[%emt 0:00:30]} Rxe1 {[%emt 0:00:30]} 38. Rxe1 {[%emt 0:00:30]} Bxe1 {[%emt 0:00:30][%mdl 4096] Endgame KB-KN} 39. Kg2 {[%emt 0:00:30] [#]} Bg3 $1 {[%emt 0:00:30][%cal Og8f7][%mdl 512] Hoping for ...Kf7!} 40. Nc5 {[%emt 0:00:30]} Bd6 {[%emt 0:00:30]} 41. Nb7 {[%emt 0:00:30]} Bc7 {[%emt 0:00:30] aiming for ...Kf7.} 42. Nc5 {[%emt 0:00:30]} Kf7 {[%emt 0:00:30]} 43. Nd3 {[%emt 0:00:30]} Bd6 {[%emt 0:00:30] And now ...Ke6 would win.} 44. Nf2 {[%emt 0:00:30]} Ke6 {[%emt 0:00:30]} 45. Kf3 {[%emt 0:00:30]} Bxa3 {[%emt 0:00:30] Weighted Error Value: White=0.60/Black=0.23 (precise)} 0-1

[Event "3rd VIZAG GM-Open 2022"]
[Site "Visakapatnam"]
[Date "2022.06.13"]
[Round "1.16"]
[White "Nguyen, Duc Hoa"]
[Black "Alluri Bhaskara Ratna Shanmukh"]
[Result "1-0"]
[ECO "B80"]
[WhiteElo "2398"]
[BlackElo "1478"]
[Annotator "TA"]
[PlyCount "113"]
[EventDate "2022.06.13"]
[EventType "swiss"]
[EventCountry "IND"]
[SourceTitle "playchess.com"]
[Source "ChessBase"]
[SourceQuality "1"]
[TimeControl "5400+30"]

{[%evp 9,113,28,33,0,18,0,0,0,0,0,18,29,36,-53,-25,-71,-30,-36,-43,-41,25,32,60,60,54,49,108,99,79,85,91,96,154,87,96,0,21,21,79,88,99,41,101,56,110,72,80,83,253,252,221,265,235,227,256,253,302,292,374,328,398,383,377,356,560,566,619,629,1562,1119,1448,1240,4802,4596,1763,1879,29982,29983,29983,29973,29973,29973,29972,1264,29972,29973,6130,5920,29975,29977,29976,29977,29977,29978,29978,29979,29983,29983,29983,29984,29984,29984,29987,29988,29988,29989]} 1. e4 {[%emt 0:00:06]} c5 {[%emt 0:04:16]} 2. Nf3 {[%emt 0:00:08]} d6 {[%emt 0:00:12]} 3. d4 {[%emt 0:00:05]} cxd4 {[%emt 0:00:06]} 4. Nxd4 {[%emt 0:00:05]} Nf6 {[%emt 0:00:08]} 5. Nc3 {[%emt 0:00:06]} e6 {[%emt 0:02:15]} 6. h4 {[%emt 0:01:09] B80: Sicilian Scheveningen: 6 g3 and 6 Be3, including English Attack.} Be7 {[%emt 0:01:39]} 7. g4 {[%emt 0:01:07]} d5 {[%emt 0:13:38]} 8. Bb5+ {[%emt 0:03:33] The position is equal.} Bd7 {[%emt 0:00:33]} 9. exd5 {[%emt 0:01:52]} Nxd5 {[%emt 0:03:08]} 10. Nxd5 {[%emt 0:00:24]} exd5 {[%emt 0:00:05] [#]} 11. Bd3 $146 {[%emt 0:02:24]} (11. Bxd7+ $14 Qxd7 12. Be3) ({Predecessor:} 11. Bxd7+ Qxd7 12. Qe2 O-O 13. Be3 Nc6 14. O-O-O Rfe8 15. Nf5 Bf8 16. Qb5 Rad8 17. c4 {½-½ (47) Schildt,R (2030)-Abraham,I (2227) Berlin 2007}) 11... Nc6 {[%emt 0:01:56]} (11... O-O {with more complications.} 12. Qf3 Bc5 13. Qxd5 Bxd4 14. Qxd4 Nc6) 12. Be3 {[%emt 0:01:13]} (12. Nxc6 $11 Bxc6 13. O-O) 12... Bf6 {[%emt 0:02:04]} (12... Bxh4 13. Qe2 Kf8 14. O-O-O $11) 13. Nxc6 {[%emt 0:12:13]} Bxc6 {[%emt 0:00:13]} 14. Bc5 {[%emt 0:00:38] Hoping for 0-0.} Qc7 {[%emt 0:13:46]} (14... Qa5+ $1 $15 15. b4 Qc7) 15. Qe2+ $11 {[%emt 0:02:30]} Qe5 {[%emt 0:00:26]} 16. O-O-O {[%emt 0:01:22]} Qxe2 {[%emt 0:00:17]} 17. Bxe2 {[%emt 0:00:05]} O-O-O {[%emt 0:00:17]} (17... b6 $14 18. Bd4 Bxd4 19. Rxd4 O-O-O) 18. g5 {[%emt 0:01:04]} Be5 {[%emt 0:02:29]} 19. Bxa7 {[%emt 0:00:57]} Kc7 {[%emt 0:03:20] Against Bb6+. Strongly threatening ...b6.} 20. Bd4 {[%emt 0:00:17]} f6 {[%emt 0:01:34] [#]} (20... Rde8 $142) 21. c3 {[%emt 0:01:25]} (21. gxf6 $142 $1 gxf6 22. Kb1) 21... Rhf8 $16 {[%emt 0:13:57]} 22. Rdf1 {[%emt 0:04:30]} (22. Bg4 $16) 22... Rde8 {[%emt 0:04:19]} 23. Bd3 {[%emt 0:01:01]} g6 {[%emt 0:01:31]} (23... Bxd4 $11 24. cxd4 fxg5) 24. Kc2 {[%emt 0:01:53]} Ra8 {[%emt 0:01:32] [#]} 25. a3 {[%emt 0:00:41]} (25. f4 $1 $16 {[%cal Rf4e5]} Bxd4 26. cxd4) 25... Ra4 {[%emt 0:03:35]} (25... Bxd4 $14 26. cxd4 Ra4) 26. Bc5 {[%emt 0:05:39]} Rf7 {[%emt 0:01:19]} ({Black should try} 26... Bd6 $14 27. Be3 d4 28. Bxd4 Bxh1 29. Rxh1 Be5) 27. Bb4 {[%emt 0:57:33] And now f4 would win.} d4 {[%emt 0:00:34]} 28. f4 $36 {[%emt 0:00:00][%mdl 2048] Keeping Black busy.} Bxf4 {[%emt 0:03:20] [#] This costs Black the game.} 29. Rxf4 $1 $18 {[%emt 0:00:00]} Bxh1 {[%emt 0:00:07]} 30. Bc4 {[%emt 0:00:00]} (30. Rxd4 f5 $14) (30. Rxf6 $6 Bd5 $16) 30... Rxb4 {[%emt 0:05:02]} 31. axb4 {[%emt 0:00:00][%mdl 4096] Endgame KRB-KRB} Rf8 {[%emt 0:00:07]} 32. Rxf6 {[%emt 0:00:00]} ({Much less strong is} 32. gxf6 dxc3 33. Kxc3 (33. bxc3 Kd6 $18) 33... Kd6 $18) 32... Rd8 {[%emt 0:03:06]} 33. Rf7+ {[%emt 0:00:00]} Kb6 {[%emt 0:00:51]} 34. Bd3 {[%emt 0:00:00] Prevents Be4.} dxc3 {[%emt 0:02:26]} 35. bxc3 {[%emt 0:00:00][%cal Bb2c3,Bc3c4,Bc4c5][%mdl 32]} Rh8 {[%emt 0:00:15]} 36. c4 {[%emt 0:00:00]} Ka7 {[%emt 0:01:38]} (36... Kc6 $142 37. h5 Kd6 38. hxg6 hxg6 39. Rf6+ (39. Bxg6 Rh2+ 40. Kb3 Rg2 $18) 39... Ke5 40. Rxg6 (40. Bxg6 Rh2+ 41. Kb3 Rh3+ 42. Ka4 Rg3 $18) 40... Rh2+ 41. Kc3 Ra2) 37. Kc3 {[%emt 0:00:00]} Bg2 {[%emt 0:04:13]} 38. b5 {[%emt 0:00:00][%cal Bb4b5,Bb5b6][%mdl 32]} h6 {[%emt 0:01:22]} 39. c5 {[%emt 0:00:00] aiming for gxh6.} hxg5 {[%emt 0:00:16]} 40. hxg5 {[%emt 0:00:00]} Bd5 {[%emt 0:01:09]} 41. Re7 {[%emt 0:00:00]} Kb8 {[%emt 0:01:03]} 42. Bxg6 {[%emt 0:00:00] Threatening mate with Re8+.} Ka7 {[%emt 0:00:35]} 43. b6+ {[%emt 0:00:00]} Ka6 {[%emt 0:00:35]} 44. Bd3+ {[%emt 0:00:00]} Ka5 {[%emt 0:00:06]} 45. Re1 {[%emt 0:00:00]} Bc6 {[%emt 0:00:21]} 46. Ra1+ {[%emt 0:00:00]} Ba4 {[%emt 0:00:06]} 47. Bc2 {[%emt 0:00:00]} Kb5 {[%emt 0:00:21]} 48. Rxa4 {[%emt 0:00:00] Intending Rg4 and mate. KRB-KR} Rh3+ {[%emt 0:00:05]} 49. Kd4 {[%emt 0:00:00] White mates.} Rh4+ {[%emt 0:00:20]} 50. Ke5 {[%emt 0:00:00]} Rh2 {[%emt 0:00:52]} 51. Ra2 {[%emt 0:00:00]} Kxc5 {[%emt 0:00:08]} 52. g6 {[%emt 0:00:00]} Kxb6 {[%emt 0:00:07]} 53. Bb3 {[%emt 0:00:00]} Rh5+ {[%emt 0:00:36]} 54. Kf6 {[%emt 0:00:00]} Rh6 {[%emt 0:00:10]} 55. Kg5 {[%emt 0:00:00]} Rxg6+ {[%emt 0:00:08]} 56. Kxg6 {[%emt 0:00:00]} Kc5 {[%emt 0:00:12]} 57. Kf5 {[%emt 0:00:00] Weighted Error Value: White=0.18 (very precise) /Black=0.73} 1-0

[Event "3rd VIZAG GM-Open 2022"]
[Site "Visakapatnam"]
[Date "2022.06.13"]
[Round "1.17"]
[White "Reyan"]
[Black "Audi Ameya"]
[Result "0-1"]
[WhiteElo "1590"]
[BlackElo "2389"]
[Annotator "TA"]
[PlyCount "16"]
[EventDate "2022.06.13"]
[EventType "swiss"]
[EventCountry "IND"]
[SourceTitle "playchess.com"]
[Source "ChessBase"]
[SourceQuality "1"]
[TimeControl "5400+30"]

{[%evp 9,15,15,4,15,4,0,32,-29999]} 1. e4 {[%emt 0:00:03]} e5 {[%emt 0:00:47]} 2. Nf3 {[%emt 0:00:18]} Nc6 {[%emt 0:00:03]} 3. d4 {[%emt 0:00:18]} exd4 {[%emt 0:00:09]} 4. Nxd4 {[%emt 0:00:14]} Qf6 {[%emt 0:00:30]} 5. Nf3 {[%emt 0:01:32]} Bb4+ {[%emt 0:00:15]} 6. c3 {[%emt 0:02:18] C45: Scotch Game.} Bc5 {[%emt 0:00:04]} 7. Bc4 {[%emt 0:02:28] [#]} Ne5 $146 {[%emt 0:02:24]} ({Predecessor:} 7... d6 8. h3 Be6 9. Nbd2 O-O-O 10. b4 Bxb4 11. Bxe6+ fxe6 12. cxb4 Qxa1 13. b5 Nd4 {0-1 (50) Mischuk,D (2344)-Beerdsen,T (2415) Chess.com INT 2017}) 8. Nxe5 {[%emt 0:06:31][%mdl 8192] [#]} (8. Nbd2 $14) 8... Qxf2# {[%emt 1:30:18] White got outplayed after the opening.  Weighted Error Value: White=2.01/Black=0.11 (very precise)} 0-1

[Event "3rd VIZAG GM-Open 2022"]
[Site "Visakapatnam"]
[Date "2022.06.13"]
[Round "1.18"]
[White "Nguyen, Van Huy"]
[Black "Aarav Sinha"]
[Result "1-0"]
[ECO "D23"]
[WhiteElo "2405"]
[BlackElo "1488"]
[Annotator "TA"]
[PlyCount "81"]
[EventDate "2022.06.13"]
[EventType "swiss"]
[EventCountry "IND"]
[SourceTitle "playchess.com"]
[Source "ChessBase"]
[SourceQuality "1"]
[TimeControl "5400+30"]

{[%evp 12,81,8,0,31,27,26,18,54,0,0,0,18,22,35,41,62,51,109,106,101,54,64,30,56,52,48,10,14,18,57,52,65,38,49,52,58,0,43,44,90,70,73,73,130,118,297,299,289,291,274,234,221,204,301,291,342,332,611,593,841,784,4806,4650,6000,5489,5381,3451,29992,29990,29993,29994]} 1. d4 {[%emt 0:00:06]} d5 {[%emt 0:00:36]} 2. Nf3 {[%emt 0:00:13]} Nf6 {[%emt 0:00:45]} 3. c4 {[%emt 0:00:07]} c6 {[%emt 0:00:50]} 4. Qb3 {[%emt 0:00:50]} dxc4 {[%emt 0:03:20]} 5. Qxc4 {[%emt 0:01:02]} Bf5 {[%emt 0:02:46]} 6. g3 {[%emt 0:00:26]} e6 {[%emt 0:01:16]} 7. Bg2 {[%emt 0:00:14]} h6 {[%emt 0:03:02] D23: Queen's Gambit Accepted: 3 Nf3 Nf6 sidelines.} 8. O-O {[%emt 0:00:47]} Be7 {[%emt 0:02:01]} 9. Nc3 {[%emt 0:00:46]} O-O {[%emt 0:01:02] The position is equal.} 10. Re1 {[%emt 0:00:56]} (10. Ne5 $14) 10... b5 $11 {[%emt 0:09:56]} 11. Qb3 {[%emt 0:01:03]} b4 {[%emt 0:01:40]} 12. Na4 {[%emt 0:02:10] [#]} Be4 $146 {[%emt 0:02:03]} ({Predecessor:} 12... Nbd7 13. Bf4 Rc8 14. Rad1 Be4 15. Ne5 Bxg2 16. Kxg2 Nd5 17. Nxd7 Nxf4+ 18. gxf4 Qxd7 {1-0 (47) Ibrahimov,R (2550)-Abdulov,O (2429) Tabriz 2012}) 13. Nc5 {[%emt 0:04:30]} Bxc5 {[%emt 0:07:03]} 14. dxc5 {[%emt 0:00:31]} Qa5 {[%emt 0:05:04]} ({Black should try} 14... a5 $14) 15. Bd2 $16 {[%emt 0:13:07]} Na6 {[%emt 0:01:47]} 16. Rec1 {[%emt 0:03:00]} (16. a3 $16) 16... Rfd8 $14 {[%emt 0:15:35] [#] Threatens to win with ...Bxf3.} 17. a3 {[%emt 0:03:51][%cal Ra3b4]} Qb5 {[%emt 0:05:57]} (17... Bxf3 18. Qxf3 Rxd2 19. axb4 $16) 18. axb4 {[%emt 0:15:08]} Qxe2 {[%emt 0:06:55]} 19. Re1 {[%emt 0:09:57]} (19. Be3 $5 {[%cal Rf3d4]}) 19... Qb5 {[%emt 0:02:51]} 20. Ra5 {[%emt 0:01:32]} Qb7 {[%emt 0:01:08]} 21. Bc3 {[%emt 0:06:43] aiming for Qa4.} Bd5 {[%emt 0:02:44]} 22. Qa3 $36 {[%emt 0:01:53][%mdl 2048] White has good play.} Nc7 {[%emt 0:00:16]} 23. Bxf6 {[%emt 0:02:27]} gxf6 {[%emt 0:00:35]} 24. h4 {[%emt 0:00:22]} (24. Ra1 $14) 24... Bxf3 {[%emt 0:10:22]} 25. Bxf3 {[%emt 0:00:40]} Nd5 {[%emt 0:01:24]} (25... a6 $14) 26. Ra4 {[%emt 0:00:59]} f5 {[%emt 0:00:33]} 27. Rd1 {[%emt 0:01:36]} Qe7 {[%emt 0:02:06]} ({Better is} 27... Qb5) 28. Ra6 $16 {[%emt 0:02:26][%cal Ba4a6,Ba6f6,Bf6f5,Bf5f4,Bf4g4,Bg4d4][%mdl 32]} Rdc8 {[%emt 0:03:58] [#] Black cannot hold the game after this.} (28... Qb7 $16 {might work better.}) 29. b5 $1 $18 {[%emt 0:03:24]} cxb5 {[%emt 0:03:13]} 30. Bxd5 {[%emt 0:00:28]} exd5 {[%emt 0:00:05]} 31. Rxd5 {[%emt 0:00:51]} Qe4 {[%emt 0:05:07]} 32. Qb3 {[%emt 0:02:40] Active counter play!} Re8 {[%emt 0:00:00]} (32... Rd8 {was necessary.} 33. Rxd8+ Rxd8 34. Rxa7 Qd5 35. Qxd5 (35. Qxb5 Qd1+ 36. Kh2 Qd4 $18) 35... Rxd5) 33. Rf6 {[%emt 0:01:48][%cal Od5d4] Rd4! is the strong threat.} Re6 {[%emt 0:00:00]} 34. Rfxf5 {[%emt 0:01:46]} ({Resist} 34. Rdxf5 Rd8 35. Rxe6 (35. Rxf7 Rd3 $11) 35... Qxf5 $18) 34... Rae8 $2 {[%emt 0:00:00]} (34... Ra6) 35. Rf4 {[%emt 0:00:48]} Qb1+ {[%emt 0:01:05]} 36. Kh2 {[%emt 0:00:24]} ({Weaker is} 36. Rd1 Qxd1+ 37. Qxd1 Re1+ 38. Qxe1 Rxe1+ 39. Kg2 a5 $16) 36... Re1 {[%emt 0:00:34]} 37. Qf3 {[%emt 0:00:25]} R1e7 {[%emt 0:00:47]} 38. Rg4+ {[%emt 0:00:26]} Kf8 {[%emt 0:00:05]} 39. Qf6 {[%emt 0:01:00][%cal Rf6h6]} Re6 {[%emt 0:00:27]} 40. Qg7+ {[%emt 0:00:14]} Ke7 {[%emt 0:00:01]} 41. Rgd4 {[%emt 0:00:11] Weighted Error Value: White=0.11 (very precise) /Black=0.61} 1-0

[Event "3rd VIZAG GM-Open 2022"]
[Site "Visakapatnam"]
[Date "2022.06.13"]
[Round "2.1"]
[White "Amonatov, Farrukh"]
[Black "Praloy Sahoo"]
[Result "1-0"]
[ECO "B86"]
[WhiteElo "2622"]
[BlackElo "2065"]
[Annotator "TA"]
[PlyCount "63"]
[EventDate "2022.06.13"]
[EventType "swiss"]
[EventCountry "IND"]
[SourceTitle "playchess.com"]
[Source "ChessBase"]
[SourceQuality "1"]
[TimeControl "5400+30"]

{[%evp 15,63,20,25,25,49,37,46,34,101,89,90,94,150,145,152,152,146,144,140,68,95,58,83,81,112,115,127,114,133,132,285,82,93,42,29,36,70,76,453,433,429,416,924,952,29991,29992,29992,29993,29993,29994]} 1. e4 {[%emt 0:00:04]} c5 {[%emt 0:04:51]} 2. Nf3 {[%emt 0:00:07]} d6 {[%emt 0:00:06]} 3. d4 {[%emt 0:00:06]} cxd4 {[%emt 0:00:04]} 4. Nxd4 {[%emt 0:00:05]} Nf6 {[%emt 0:00:04]} 5. Nc3 {[%emt 0:00:08]} a6 {[%emt 0:00:55]} 6. Bc4 {[%emt 0:00:47]} e6 {[%emt 0:00:06]} 7. Bb3 {[%emt 0:00:04]} Be7 {[%emt 0:00:49]} 8. g4 {[%emt 0:00:14]} h6 {[%emt 0:04:30]} 9. Be3 {[%emt 0:02:09] B86: Sicilian Scheveningen/Najdorf: 6 Bc4, without early ...b5.} Nc6 {[%emt 0:00:42]} 10. f3 {[%emt 0:02:05]} Bd7 {[%emt 0:11:44]} 11. Qd2 {[%emt 0:01:17] White is slightly better.} Rc8 {[%emt 0:00:18]} (11... b5 $14) 12. O-O-O {[%emt 0:00:47]} Ne5 {[%emt 0:00:37]} 13. h4 {[%emt 0:00:20]} Nc4 {[%emt 0:03:56]} (13... b5 $142) 14. Bxc4 $16 {[%emt 0:00:17]} Rxc4 {[%emt 0:00:03]} 15. g5 {[%emt 0:00:10] [#]} Nh5 $146 {[%emt 0:05:24]} ({Predecessor:} 15... hxg5 16. hxg5 Nh5 17. g6 fxg6 18. Qg2 Kf7 19. f4 b5 20. Rdg1 g5 21. f5 e5 {1-0 (48) Ben Said,A-Mohamad,O Acri 2006}) 16. Kb1 {[%emt 0:02:21]} (16. gxh6 gxh6 17. Kb1 Bf8 $16) 16... b5 {[%emt 0:01:01]} 17. Rhg1 {[%emt 0:06:33]} ({White should play} 17. gxh6 $16 gxh6 18. a3 (18. b3 Rc8 $14)) 17... g6 {[%emt 0:03:33]} 18. Nb3 {[%emt 0:05:02]} hxg5 {[%emt 0:05:04]} 19. Bxg5 {[%emt 0:00:56]} f6 {[%emt 0:00:20]} 20. Be3 {[%emt 0:00:26]} Kf7 {[%emt 0:00:38]} 21. Rg2 {[%emt 0:05:44]} ({But not} 21. Qg2 Rg8 $14) 21... Rg8 {[%emt 0:06:06]} 22. Rdg1 {[%emt 0:01:03] White is more active.} Qc7 $2 {[%emt 0:06:56] [#]} (22... Qa8 $16) 23. Rg4 $2 {[%emt 0:04:29]} (23. Nd5 $1 $18 {[%mdl 512] has better winning chances.} Qd8 24. Nxe7 Qxe7 25. Na5) 23... Rxc3 {[%emt 0:09:54]} 24. bxc3 {[%emt 0:05:47]} (24. Qxc3 $16 Qxc3 25. bxc3) 24... e5 $1 $14 {[%emt 0:00:13]} 25. R4g2 {[%emt 0:00:24]} a5 {[%emt 0:01:50]} 26. f4 {[%emt 0:00:24][%cal Bf3f4,Bf4f5][%mdl 32]} a4 $2 {[%emt 0:00:35][%mdl 8192]} (26... exf4 $16 {is more resistant.} 27. Bf2 a4) 27. f5 $1 $18 {[%emt 0:02:41] Black must now prevent Qd5+.} ({Weaker is} 27. Qd5+ Be6 28. Qd1 Nxf4 29. Bxf4 axb3 30. axb3 exf4 31. Rxg6 Rxg6 $15) 27... Bc6 {[%emt 0:03:57] Prevents Qd5+.} 28. Rxg6 {[%emt 0:01:27][%cal Bg2g6,Bg6g8,Bg8h8][%mdl 32]} Rh8 {[%emt 0:01:30] [#]} (28... Rxg6 $142 29. fxg6+ Kg8) 29. Qg2 $1 {[%emt 0:02:22] White wants to mate with Rg8.} axb3 {[%emt 0:01:02]} (29... Ke8 30. Rg8+) 30. Rg8 {[%emt 0:02:32][%csl Gf5,Gg1,Gg8][%cal Rg2g6] White mates.} bxa2+ {[%emt 0:00:41]} 31. Ka1 {[%emt 0:01:25][%csl Gf5,Gg1,Gg8][%cal Rg2g6]} Bf8 {[%emt 0:02:01]} 32. Rxh8 {[%emt 0:00:31] Weighted Error Value: White=0.21 (precise) /Black=0.68} 1-0

[Event "3rd VIZAG GM-Open 2022"]
[Site "Visakapatnam"]
[Date "2022.06.13"]
[Round "2.2"]
[White "Ramakrishna, J.."]
[Black "Paichadze, Luka"]
[Result "0-1"]
[ECO "C00"]
[WhiteElo "2070"]
[BlackElo "2567"]
[Annotator "TA"]
[PlyCount "81"]
[EventDate "2022.06.13"]
[EventType "swiss"]
[EventCountry "IND"]
[SourceTitle "playchess.com"]
[Source "ChessBase"]
[SourceQuality "1"]
[TimeControl "5400+30"]

{[%evp 22,81,-24,-29,-27,-37,-33,-57,-58,-61,-55,-55,-43,-37,-59,-73,-85,-84,-80,-96,-81,-75,-94,-68,-77,-168,-184,-168,-192,-189,-155,-166,-170,-161,-171,-285,-319,-358,-339,-420,-315,-306,-278,-408,-412,-401,-371,-736,-687,-686,-545,-519,-503,-660,-650,-1006,-994,-1372,-1262,-1043,-404,-29987]} 1. Nf3 {[%emt 0:00:04]} Nf6 {[%emt 0:00:35]} 2. g3 {[%emt 0:00:07]} b5 {[%emt 0:00:24]} 3. Bg2 {[%emt 0:00:07]} Bb7 {[%emt 0:00:16]} 4. O-O {[%emt 0:00:15]} e6 {[%emt 0:00:07]} 5. d3 {[%emt 0:02:01]} d5 {[%emt 0:02:24]} 6. Nbd2 {[%emt 0:04:20]} Be7 {[%emt 0:00:20]} 7. e4 {[%emt 0:05:29]} O-O {[%emt 0:00:14]} 8. e5 {[%emt 0:00:39]} Nfd7 {[%emt 0:00:05]} 9. Re1 {[%emt 0:00:11]} c5 {[%emt 0:00:07]} 10. Nf1 {[%emt 0:00:11]} Nc6 {[%emt 0:00:10]} 11. h4 {[%emt 0:00:42]} Qc7 {[%emt 0:00:37]} 12. Bf4 {[%emt 0:00:32]} Rfc8 {[%emt 0:00:35] C00: French: Unusual White 2nd moves.} 13. N1h2 {[%emt 0:08:03]} a5 {[%emt 0:01:44]} 14. h5 {[%emt 0:10:32]} h6 $1 {[%emt 0:00:41] Black is slightly better.} 15. Ng4 {[%emt 0:01:18][%cal Of4h6]} Qd8 {[%emt 0:00:09]} 16. c3 {[%emt 0:04:28] [#]} a4 $146 {[%emt 0:05:35]} ({Predecessor:} 16... Bf8 17. Qd2 b4 18. c4 Ne7 19. Nh4 Rab8 20. Rac1 a4 21. Qe2 Nc6 22. cxd5 Nd4 {1-0 (46) Praggnanandhaa,R (2517)-Kumar,N (2271) Stockholm 2017}) 17. a3 {[%emt 0:00:06]} Na5 {[%emt 0:07:27][%cal Od5d4]} 18. Nd2 {[%emt 0:08:08]} Bc6 {[%emt 0:01:25] Black keeps a firm grip on the game.} 19. Bh3 {[%emt 0:05:47][%cal Of4h6]} Qf8 {[%emt 0:02:29]} 20. Be3 {[%emt 0:04:57]} b4 {[%emt 0:02:25]} 21. c4 {[%emt 0:16:20]} dxc4 {[%emt 0:03:49]} 22. dxc4 {[%emt 0:02:17]} Rab8 {[%emt 0:02:55]} 23. axb4 {[%emt 0:05:37]} (23. Qc2 $17) 23... Rxb4 $19 {[%emt 0:02:02]} 24. Qc2 {[%emt 0:00:46]} Rcb8 {[%emt 0:07:16]} 25. Ra2 {[%emt 0:02:39]} Nb3 {[%emt 0:16:07]} 26. Bg2 {[%emt 0:01:40]} Bxg2 {[%emt 0:01:32]} 27. Kxg2 {[%emt 0:00:06]} Nb6 {[%emt 0:01:33]} 28. Ne4 {[%emt 0:02:12]} (28. f3 $142) 28... Rxc4 {[%emt 0:01:16]} 29. Qb1 {[%emt 0:00:07]} Nd5 {[%emt 0:01:02]} 30. Rd1 {[%emt 0:02:32]} Nd4 {[%emt 0:07:51]} 31. Qd3 {[%emt 0:02:33]} Rcb4 {[%emt 0:00:24][%cal Bc4b4,Bb4b3,Bb3e3][%mdl 32]} 32. Bc1 {[%emt 0:01:23]} (32. Nc3 {was necessary.}) 32... Rb3 {[%emt 0:02:23]} 33. Qf1 {[%emt 0:00:34]} Qe8 {[%emt 0:00:39] [#] Hoping for ...Qc6.} 34. Nh2 $2 {[%emt 0:03:47]} (34. Nd2 R3b4 35. Ne4) 34... Qc6 {[%emt 0:00:25]} 35. f3 {[%emt 0:02:04]} Ne3+ {[%emt 0:03:20]} 36. Bxe3 {[%emt 0:00:10]} Rxe3 {[%emt 0:00:02]} 37. Re1 {[%emt 0:02:47]} Qd5 {[%emt 0:01:52][%csl LRa2,LRe5]} 38. Rxa4 {[%emt 0:03:08]} Rxb2+ {[%emt 0:01:35]} 39. Kg1 {[%emt 0:00:29]} Rxe1 {[%emt 0:00:16]} 40. Qxe1 {[%emt 0:00:14]} Rxh2 {[%emt 0:00:11]} 41. Qd1 {[%emt 0:01:38] Weighted Error Value: White=0.72/Black=0.28 (precise)} (41. Rxd4 $19 cxd4 42. Kxh2) 0-1